bitfinex/quotes_BTCUSD_20210101
["timestamp","ask_amount","ask_price","bid_price","bid_amount"]
[1609486380849,0.53485327,29034.0,29033.0,2.2605681]
[1609486381151,0.53485327,29034.0,29033.0,1.93121641]
[1609486383927,0.53485327,29034.0,29033.0,2.17364641]
[1609486384124,0.53485327,29034.0,29033.0,1.87364641]
[1609486384954,0.53485327,29034.0,29033.0,1.61863341]
[1609486385351,0.53485327,29034.0,29033.0,1.24711641]
[1609486385555,0.53485327,29034.0,29033.0,1.16711641]
[1609486386349,0.52985327,29034.0,29033.0,1.16711641]
[1609486387055,0.52985327,29034.0,29033.0,1.46711641]
[1609486387252,0.52985327,29034.0,29033.0,1.55830641]
[1609486387856,0.52985327,29034.0,29033.0,1.62076641]
[1609486389556,0.52985327,29034.0,29033.0,2.52076641]
[1609486389986,0.52985327,29034.0,29033.0,1.62076641]
[1609486390584,0.82985327,29034.0,29033.0,1.26711641]
[1609486390781,0.65542547,29034.0,29033.0,1.26711641]
[1609486396202,0.65542547,29034.0,29033.0,2.01711641]
[1609486396203,0.65042547,29034.0,29033.0,2.01711641]
[1609486396401,0.65042547,29034.0,29033.0,1.26711641]
[1609486398763,0.63445127,29034.0,29033.0,1.26711641]
[1609486399261,0.62945127,29034.0,29033.0,1.26711641]
[1609486406934,0.62945127,29034.0,29033.0,1.34711641]
[1609486408437,0.62945127,29034.0,29033.0,1.89711641]
[1609486409155,0.62945127,29034.0,29033.0,1.34711641]
[1609486410356,0.00148277,29035.0,29034.0,1.9]
[1609486410558,0.0008,29035.0,29034.0,2.935485]
[1609486410756,0.0008,29035.0,29034.0,3.12269912]
[1609486410956,0.0008,29035.0,29034.0,3.20269912]
[1609486411158,0.0008,29035.0,29034.0,3.88758276]
[1609486412634,0.00128277,29036.0,29035.0,3.4]
[1609486412836,0.0006,29036.0,29035.0,3.899134]
[1609486413033,0.00128277,29037.0,29036.0,2.455458]
[1609486413228,0.00128277,29037.0,29036.0,3.340458]
[1609486413434,0.0006,29037.0,29036.0,3.340458]
[1609486413628,0.00148277,29038.0,29037.0,1.8]
[1609486413835,0.00148277,29038.0,29037.0,2.949107]
[1609486414030,0.0008,29038.0,29037.0,3.92298606]
[1609486415677,0.0008,29038.0,29037.0,3.59078284]
[1609486416576,0.00168277,29039.0,29038.0,3.3]
[1609486416779,0.001,29039.0,29038.0,3.222731]
[1609486416981,0.00148277,29040.0,29039.0,2.1]
[1609486417180,0.0008,29040.0,29039.0,3.34908]
[1609486417682,0.00128277,29041.0,29040.0,2.85]
[1609486417878,0.0006,29041.0,29040.0,3.190404]
[1609486418080,0.00128277,29042.0,29041.0,1.814053]
[1609486418295,0.00128277,29042.0,29041.0,2.599053]
[1609486418495,0.00128277,29042.0,29041.0,1.149053]
[1609486418496,0.0006,29042.0,29041.0,1.149053]
[1609486418698,0.0006,29042.0,29041.0,0.55120895]
[1609486419097,0.0006,29042.0,29041.0,0.40598337]
[1609486420798,0.0006,29042.0,29041.0,0.64598337]
[1609486423003,0.0006,29047.0,29044.0,0.355352]
[1609486423004,1.3424777,29045.0,29044.0,0.355352]
[1609486423210,0.7224777,29045.0,29044.0,2.67001013]
[1609486423400,0.7224777,29045.0,29044.0,0.87001013]
[1609486424120,0.7224777,29045.0,29044.0,1.01106971]
[1609486424619,0.7224777,29045.0,29044.0,1.87056971]
[1609486424824,0.5614777,29045.0,29044.0,3.35139663]
[1609486425022,0.0006,29047.0,29045.0,2.45]
[1609486425221,0.0006,29047.0,29045.0,2.838998]
[1609486425521,0.0006,29047.0,29045.0,3.02552295]
[1609486425719,0.0006,29047.0,29045.0,1.42552295]
[1609486426221,0.00126017,29047.0,29045.0,1.28091691]
[1609486427675,0.00126017,29047.0,29045.0,1.42150919]
[1609486427973,0.00126017,29047.0,29045.0,1.28091691]
[1609486429269,0.00126017,29047.0,29045.0,1.42197649]
[1609486429828,0.00126017,29047.0,29045.0,1.56250604]
[1609486431133,0.00126017,29047.0,29045.0,2.56250604]
[1609486431356,0.00126017,29047.0,29045.0,2.42197649]
[1609486431858,1.15590716,29046.0,29045.0,2.23984506]
[1609486432358,1.15590716,29046.0,29045.0,2.38028304]
[1609486433156,1.15590716,29046.0,29045.0,2.50375892]
[1609486433958,2.12773805,29046.0,29045.0,2.50375892]
[1609486434358,1.15590716,29046.0,29045.0,2.50375892]
[1609486436567,2.12773805,29046.0,29045.0,2.50375892]
[1609486436764,2.07773805,29046.0,29045.0,1.50375892]
[1609486436982,1.10590716,29046.0,29045.0,0.82875892]
[1609486437385,1.10590716,29046.0,29045.0,0.68832094]
[1609486437583,2.07773805,29046.0,29045.0,0.52939279]
[1609486438387,2.07773805,29046.0,29045.0,0.69091691]
[1609486440085,2.07773805,29046.0,29045.0,0.81448384]
[1609486440287,2.07773805,29046.0,29045.0,0.52948384]
[1609486440485,1.10590716,29046.0,29045.0,0.52948384]
[1609486440986,2.07273805,29046.0,29045.0,0.52948384]
[1609486441187,1.10090716,29046.0,29045.0,0.52948384]
[1609486441490,1.05090716,29046.0,29045.0,0.76448384]
[1609486441687,1.05090716,29046.0,29045.0,0.7482844]
[1609486442386,1.05090716,29046.0,29045.0,0.74515328]
[1609486442841,1.05090716,29046.0,29045.0,0.62158635]
[1609486443439,2.02273805,29046.0,29045.0,0.6200208]
[1609486443642,1.05090716,29046.0,29045.0,0.3850208]
[1609486444340,1.05090716,29046.0,29045.0,0.50803648]
[1609486444742,1.05090716,29046.0,29045.0,0.38436118]
[1609486445244,1.05090716,29046.0,29045.0,0.78308731]
[1609486445445,1.05090716,29046.0,29045.0,0.50808731]
[1609486446247,1.05090716,29046.0,29045.0,0.38436118]
[1609486448673,2.02273805,29046.0,29045.0,0.38436118]
[1609486448974,1.05090716,29046.0,29045.0,0.38436118]
[1609486449768,1.20590716,29046.0,29045.0,0.38436118]
[1609486450074,1.05090716,29046.0,29045.0,0.38436118]
[1609486450770,1.04590716,29046.0,29045.0,0.38436118]
[1609486453888,1.04090716,29046.0,29045.0,0.38436118]
[1609486454083,1.04090716,29046.0,29045.0,0.70436118]
[1609486456482,1.54090716,29046.0,29045.0,0.70436118]
[1609486457746,1.54090716,29046.0,29045.0,1.03419878]
[1609486459043,1.54090716,29046.0,29045.0,1.13419878]
[1609486459246,1.54090716,29046.0,29045.0,1.03419878]
[1609486460983,1.53090716,29046.0,29045.0,1.03419878]
[1609486462078,1.52090716,29046.0,29045.0,1.03419878]
[1609486463511,1.52090716,29046.0,29045.0,0.71419878]
[1609486467081,1.52090716,29046.0,29045.0,0.38436118]
[1609486467416,1.52090716,29046.0,29045.0,0.70436118]
[1609486469931,1.52090716,29046.0,29045.0,0.80436118]
[1609486470336,1.51090716,29046.0,29045.0,0.80436118]
[1609486471236,1.50590716,29046.0,29045.0,0.80436118]
[1609486474400,1.50090716,29046.0,29045.0,0.80436118]
[1609486475927,1.49857616,29046.0,29045.0,1.40436118]
[1609486476126,1.49857616,29046.0,29045.0,0.80436118]
[1609486479330,0.99857616,29046.0,29045.0,0.80436118]
[1609486488833,0.99857616,29046.0,29045.0,0.90436118]
[1609486489036,0.99857616,29046.0,29045.0,0.80436118]
[1609486489234,0.99857616,29046.0,29045.0,0.90436118]
[1609486489437,0.99857616,29046.0,29045.0,0.80436118]
[1609486491050,0.99857616,29046.0,29045.0,0.90436118]
[1609486491749,0.99857616,29046.0,29045.0,0.80436118]
[1609486491944,0.99857616,29046.0,29045.0,0.90436118]
[1609486492147,0.99857616,29046.0,29045.0,0.80436118]
[1609486492846,0.99857616,29046.0,29045.0,0.90436118]
[1609486493146,0.99857616,29046.0,29045.0,0.80436118]
[1609486493945,0.99857616,29046.0,29045.0,0.90436118]
[1609486494148,0.99857616,29046.0,29045.0,0.80436118]
[1609486494348,0.99857616,29046.0,29045.0,0.90436118]
[1609486494549,0.99857616,29046.0,29045.0,0.80436118]
[1609486494749,0.99857616,29046.0,29045.0,0.90436118]
[1609486494949,0.99857616,29046.0,29045.0,0.80436118]
[1609486495876,0.99857616,29046.0,29045.0,0.90436118]
[1609486496173,0.99857616,29046.0,29045.0,0.80436118]
[1609486496574,0.99857616,29046.0,29045.0,0.90436118]
[1609486496775,0.99857616,29046.0,29045.0,0.80436118]
[1609486496974,0.99857616,29046.0,29045.0,0.90436118]
[1609486497573,0.99857616,29046.0,29045.0,0.80436118]
[1609486497776,0.99857616,29046.0,29045.0,0.90436118]
[1609486497973,0.99857616,29046.0,29045.0,0.80436118]
[1609486498176,0.99857616,29046.0,29045.0,0.90436118]
[1609486498675,0.31117616,29046.0,29045.0,0.90436118]
[1609486501393,0.31117616,29046.0,29045.0,0.89936118]
[1609486502494,0.31117616,29046.0,29045.0,1.08754118]
[1609486507726,0.30617616,29046.0,29045.0,2.48754118]
[1609486508127,0.30617616,29046.0,29045.0,1.08754118]
[1609486509352,0.0006,29050.0,29046.0,2.495]
[1609486509551,0.0006,29050.0,29049.0,2.405286]
[1609486509756,0.0426,29053.0,29050.0,1.45]
[1609486509951,0.0426,29053.0,29052.0,0.095]
[1609486510151,0.0426,29053.0,29052.0,0.455244]
[1609486510358,0.0426,29053.0,29052.0,0.550244]
[1609486510552,0.0426,29053.0,29052.0,0.650244]
[1609486510754,0.0376,29053.0,29052.0,0.78715682]
[1609486510952,0.0376,29053.0,29052.0,0.69215682]
[1609486511151,0.0326,29053.0,29052.0,1.47465682]
[1609486511553,0.0326,29053.0,29052.0,1.37965682]
[1609486511752,0.0326,29053.0,29052.0,1.47465682]
[1609486512853,0.0326,29053.0,29052.0,1.37965682]
[1609486513052,0.0326,29053.0,29052.0,1.47465682]
[1609486513655,0.0326,29053.0,29052.0,1.37965682]
[1609486513854,0.0326,29053.0,29052.0,1.47465682]
[1609486514280,0.0326,29053.0,29052.0,1.37965682]
[1609486514979,0.0326,29053.0,29052.0,1.47465682]
[1609486515178,0.0326,29053.0,29052.0,1.37965682]
[1609486515379,0.0326,29053.0,29052.0,1.47465682]
[1609486516278,0.0326,29053.0,29052.0,1.37965682]
[1609486516480,0.0326,29053.0,29052.0,1.47465682]
[1609486516678,0.0326,29053.0,29052.0,1.37965682]
[1609486516881,0.0276,29053.0,29052.0,1.47465682]
[1609486518807,0.0276,29053.0,29052.0,1.37965682]
[1609486519003,0.0276,29053.0,29052.0,1.47465682]
[1609486519308,1.06166924,29055.0,29054.0,0.342347]
[1609486519947,1.06166924,29055.0,29054.0,0.38425931]
[1609486520546,1.06166924,29055.0,29054.0,0.38377404]
[1609486520746,0.08983835,29055.0,29054.0,0.38377404]
[1609486520947,0.08483835,29055.0,29054.0,0.57877404]
[1609486521946,0.08483835,29055.0,29054.0,0.59493425]
[1609486523147,0.08483835,29055.0,29054.0,1.11053425]
[1609486526380,1.05666924,29055.0,29054.0,1.11053425]
[1609486526683,1.42079524,29055.0,29054.0,0.57367252]
[1609486526883,2.12727008,29055.0,29054.0,0.57367252]
[1609486527085,4.42227008,29055.0,29054.0,0.05807252]
[1609486527280,2.62227008,29055.0,29054.0,0.05807252]
[1609486528080,3.52227008,29055.0,29054.0,0.05807252]
[1609486528480,2.62227008,29055.0,29054.0,0.05807252]
[1609486530604,2.62227008,29055.0,29054.0,0.18098723]
[1609486531206,2.62227008,29055.0,29054.0,0.13907492]
[1609486531405,2.62227008,29055.0,29054.0,0.18098865]
[1609486531810,0.94396435,29055.0,29054.0,0.18098865]
[1609486532006,0.44896435,29055.0,29054.0,0.18098865]
[1609486532208,0.08483835,29055.0,29054.0,0.54511465]
[1609486532407,0.08483835,29055.0,29054.0,0.52219994]
[1609486533053,1.49896435,29055.0,29054.0,0.15807394]
[1609486533350,1.49896435,29055.0,29054.0,0.05807394]
[1609486533551,1.72396435,29055.0,29054.0,0.05807394]
[1609486533848,2.69579524,29055.0,29054.0,0.05807394]
[1609486534645,1.72396435,29055.0,29054.0,0.05807394]
[1609486535690,2.23073147,29055.0,29054.0,0.05807394]
[1609486535991,1.18073147,29055.0,29054.0,0.05807394]
[1609486538398,0.95573147,29055.0,29054.0,0.05807394]
[1609486540016,0.95573147,29055.0,29054.0,0.15807394]
[1609486540716,0.95573147,29055.0,29054.0,0.05807394]
[1609486540918,1.09573147,29055.0,29054.0,0.05807394]
[1609486545751,0.95573147,29055.0,29054.0,0.05807394]
[1609486546653,0.11573147,29055.0,29054.0,0.05807394]
[1609486547352,0.47985847,29055.0,29054.0,0.05807394]
[1609486551829,1.12985847,29055.0,29054.0,0.05807394]
[1609486552330,0.62485847,29055.0,29054.0,0.05807394]
[1609486552530,0.47985847,29055.0,29054.0,0.05807394]
[1609486552731,1.02985847,29055.0,29054.0,0.05807394]
[1609486555466,0.47985847,29055.0,29054.0,0.05807394]
[1609486556867,0.11573147,29055.0,29054.0,0.05807394]
[1609486558270,0.11573147,29055.0,29054.0,0.42220094]
[1609486558469,0.11573147,29055.0,29054.0,0.59720094]
[1609486559391,0.11573147,29055.0,29054.0,0.23307394]
[1609486559693,0.86573147,29055.0,29054.0,0.23307394]
[1609486560394,0.86573147,29055.0,29054.0,0.05807394]
[1609486560595,0.11573147,29055.0,29054.0,0.05807394]
[1609486560895,0.11573147,29055.0,29054.0,0.52220094]
[1609486561296,0.11573147,29055.0,29054.0,0.69220094]
[1609486565055,0.11573147,29055.0,29054.0,0.59220094]
[1609486565959,0.47985847,29055.0,29054.0,0.22807394]
[1609486566259,0.47985847,29055.0,29054.0,0.05807394]
[1609486566860,0.11573147,29055.0,29054.0,0.05807394]
[1609486567262,0.47985847,29055.0,29054.0,0.05807394]
[1609486570589,1.12985847,29055.0,29054.0,0.05807394]
[1609486572491,0.47985847,29055.0,29054.0,0.05807394]
[1609486574415,1.02985847,29055.0,29054.0,0.05807394]
[1609486574914,0.68985847,29055.0,29054.0,0.05807394]
[1609486575615,1.38985847,29055.0,29054.0,0.05807394]
[1609486576015,0.68985847,29055.0,29054.0,0.05807394]
[1609486577126,0.68985847,29055.0,29054.0,0.15807394]
[1609486577321,0.11573147,29055.0,29054.0,0.52220094]
[1609486582306,0.11573147,29055.0,29054.0,0.72220094]
[1609486586241,0.11573147,29055.0,29054.0,1.15220094]
[1609486586745,0.11573147,29055.0,29054.0,1.47975601]
[1609486587383,0.11573147,29055.0,29054.0,1.15220094]
[1609486587952,0.11573147,29055.0,29054.0,0.80220094]
[1609486594840,0.11073147,29055.0,29054.0,0.80220094]
[1609486595345,0.10073147,29055.0,29054.0,0.80220094]
[1609486596146,0.10053147,29055.0,29054.0,2.25220094]
[1609486596346,0.00081752,29056.0,29054.0,4.97915909]
[1609486596652,0.00060418,29060.0,29057.0,0.095]
[1609486596857,0.00060418,29062.0,29059.0,0.459127]
[1609486597049,2.17e-05,29062.0,29060.0,0.364127]
[1609486597250,0.0004217,29063.0,29061.0,3.68525815]
[1609486597456,0.0004,29065.0,29064.0,1.0]
[1609486597662,0.0002,29067.0,29065.0,0.85]
[1609486597959,0.0006,29068.0,29067.0,2.87305515]
[1609486598153,0.0006,29068.0,29067.0,1.33066815]
[1609486598348,0.0006,29068.0,29067.0,0.65566815]
[1609486598778,0.0006,29068.0,29067.0,0.69756904]
[1609486598972,0.0006,29068.0,29067.0,0.77756904]
[1609486599372,0.0006,29068.0,29067.0,1.16256904]
[1609486603583,0.0006,29068.0,29067.0,0.87093089]
[1609486603783,0.0006,29068.0,29067.0,1.87093089]
[1609486604425,0.00137837,29069.0,29068.0,0.89769015]
[1609486604617,0.0008,29069.0,29068.0,1.07703903]
[1609486604817,0.0008,29069.0,29068.0,2.11893762]
[1609486605023,0.0004,29077.0,29068.0,2.11893762]
[1609486605328,0.67948255,29078.0,29072.0,0.5153]
[1609486605521,0.01149094,29079.0,29073.0,0.39142315]
[1609486605723,0.01149094,29079.0,29074.0,0.285]
[1609486605919,0.01149094,29079.0,29075.0,0.363922]
[1609486606119,0.01149094,29079.0,29076.0,0.05892815]
[1609486606317,0.01149094,29079.0,29077.0,0.36403]
[1609486607117,0.00649094,29079.0,29077.0,0.36403]
[1609486607321,0.00649094,29079.0,29078.0,0.32]
[1609486607520,0.00649094,29079.0,29078.0,0.652299]
[1609486607719,0.00649094,29079.0,29078.0,0.849009]
[1609486608184,0.00649094,29079.0,29078.0,1.00162695]
[1609486609682,0.00649094,29079.0,29078.0,0.92162695]
[1609486610284,0.97832183,29079.0,29078.0,0.92162695]
[1609486610989,0.00649094,29079.0,29078.0,0.92162695]
[1609486611386,0.97832183,29079.0,29078.0,0.92162695]
[1609486611588,0.97832183,29079.0,29078.0,0.54511695]
[1609486611823,0.97832183,29079.0,29078.0,0.01610795]
[1609486611985,1.34235183,29079.0,29078.0,0.01610795]
[1609486612187,0.37052094,29079.0,29078.0,0.01610795]
[1609486612390,0.00649094,29079.0,29078.0,0.38013795]
[1609486612592,0.00649094,29079.0,29078.0,0.52013795]
[1609486612990,0.55649094,29079.0,29078.0,0.52013795]
[1609486614104,1.20649094,29079.0,29078.0,0.52013795]
[1609486614403,1.20649094,29079.0,29078.0,0.38013795]
[1609486615205,2.17832183,29079.0,29078.0,0.38013795]
[1609486615405,1.20649094,29079.0,29078.0,0.01610795]
[1609486615604,0.55649094,29079.0,29078.0,0.01610795]
[1609486615908,0.55649094,29079.0,29078.0,0.38013795]
[1609486616704,0.55649094,29079.0,29078.0,0.01610795]
[1609486617008,0.55649094,29079.0,29078.0,0.38013795]
[1609486617203,0.55649094,29079.0,29078.0,0.01610795]
[1609486617506,0.55649094,29079.0,29078.0,0.38013795]
[1609486617705,0.55149094,29079.0,29078.0,0.38013795]
[1609486619639,1.27547205,29079.0,29078.0,0.38013795]
[1609486620343,1.27547205,29079.0,29078.0,0.01610795]
[1609486620640,1.82950205,29079.0,29078.0,0.01610795]
[1609486623415,1.63282205,29079.0,29078.0,0.01610795]
[1609486623914,1.63282205,29079.0,29078.0,0.38013795]
[1609486624111,1.63282205,29079.0,29078.0,0.37803095]
[1609486624410,1.44282205,29079.0,29078.0,0.37592695]
[1609486624611,0.72547205,29079.0,29078.0,0.37592695]
[1609486624809,0.72547205,29079.0,29078.0,0.37929456]
[1609486626149,0.72047205,29079.0,29078.0,0.37929456]
[1609486626954,1.22047205,29079.0,29078.0,0.37929456]
[1609486627454,0.72047205,29079.0,29078.0,0.37929456]
[1609486628891,1.77047205,29079.0,29078.0,0.37929456]
[1609486629289,1.77047205,29079.0,29078.0,0.01526456]
[1609486629692,0.72047205,29079.0,29078.0,0.057158]
[1609486629994,0.72047205,29079.0,29078.0,0.45929456]
[1609486630690,0.72047205,29079.0,29078.0,0.50118748]
[1609486630892,1.27047205,29079.0,29078.0,0.50118748]
[1609486631293,1.46047205,29079.0,29078.0,0.50118748]
[1609486631993,1.46047205,29079.0,29078.0,0.42118748]
[1609486632394,1.46047205,29079.0,29078.0,0.05715748]
[1609486632792,2.31047205,29079.0,29078.0,0.05715748]
[1609486632997,2.31047205,29079.0,29078.0,0.04190748]
[1609486632998,3.68740479,29079.0,29078.0,0.04190748]
[1609486633195,3.78037328,29079.0,29073.0,0.12215093]
[1609486633403,0.36403,29075.0,29073.0,0.12215093]
[1609486633610,5.09615311,29074.0,29070.0,0.12231765]
[1609486633801,3.76403,29071.0,29070.0,0.12231765]
[1609486634000,4.03856997,29071.0,29070.0,0.22638333]
[1609486634198,4.00510185,29071.0,29070.0,0.22638333]
[1609486634419,4.00510185,29071.0,29070.0,0.10406568]
[1609486634615,4.74510185,29071.0,29070.0,0.10406568]
[1609486634919,6.71693274,29071.0,29070.0,0.10406568]
[1609486635223,5.74510185,29071.0,29070.0,0.10406568]
[1609486637014,5.54510185,29071.0,29070.0,0.10406568]
[1609486637218,2.14510185,29071.0,29070.0,0.10406568]
[1609486637418,1.40510185,29071.0,29070.0,0.10406568]
[1609486637817,3.60510185,29071.0,29070.0,0.10406568]
[1609486638300,4.77693274,29071.0,29070.0,0.10406568]
[1609486639009,3.60510185,29071.0,29070.0,0.10406568]
[1609486641254,4.77693274,29071.0,29066.0,0.63793027]
[1609486641456,0.36403,29069.0,29066.0,0.5155]
[1609486641660,0.76607185,29068.0,29066.0,0.5155]
[1609486641859,2.66403,29067.0,29066.0,0.5155]
[1609486642062,3.66403,29067.0,29066.0,0.5155]
[1609486642358,3.66403,29067.0,29065.0,0.51692303]
[1609486642557,2.2,29066.0,29065.0,0.51692303]
[1609486642755,2.56403,29066.0,29065.0,0.51692303]
[1609486642952,0.96403,29066.0,29065.0,0.51692303]
[1609486643154,0.36403,29066.0,29065.0,0.51692303]
[1609486643655,1.16403,29066.0,29065.0,0.51692303]
[1609486643889,0.8,29066.0,29065.0,0.51692303]
[1609486644189,1.16403,29066.0,29065.0,0.51692303]
[1609486645989,0.36403,29066.0,29065.0,0.51692303]
[1609486646292,0.59403,29066.0,29065.0,0.51692303]
[1609486646689,1.54403,29066.0,29065.0,0.51692303]
[1609486647091,0.59403,29066.0,29065.0,0.51692303]
[1609486648591,1.24403,29066.0,29065.0,0.55882562]
[1609486648790,0.59403,29066.0,29065.0,0.55882562]
[1609486649713,2.84403,29066.0,29065.0,0.54882562]
[1609486649913,2.49403,29066.0,29065.0,0.54882562]
[1609486650211,3.49403,29066.0,29065.0,0.54882562]
[1609486651210,1.59403,29066.0,29065.0,0.54882562]
[1609486651615,3.09403,29066.0,29065.0,0.54882562]
[1609486652016,3.29403,29066.0,29065.0,0.54882562]
[1609486652220,3.09403,29066.0,29065.0,0.54882562]
[1609486652618,4.44403,29066.0,29065.0,0.54882562]
[1609486652821,3.44403,29066.0,29065.0,0.54882562]
[1609486653253,4.41586089,29066.0,29065.0,0.54882562]
[1609486653452,4.96586089,29066.0,29065.0,0.54882562]
[1609486653652,5.96586089,29066.0,29065.0,0.54882562]
[1609486654055,5.96586089,29066.0,29065.0,0.50692303]
[1609486654250,4.99403,29066.0,29065.0,0.50692303]
[1609486654553,4.99403,29066.0,29065.0,0.54882838]
[1609486654953,4.99403,29066.0,29065.0,0.50692303]
[1609486655195,3.09403,29066.0,29065.0,0.50692303]
[1609486655599,4.14403,29066.0,29065.0,0.50692303]
[1609486655895,3.94403,29066.0,29065.0,0.50692303]
[1609486656499,3.09403,29066.0,29065.0,0.50692303]
[1609486657496,3.79403,29066.0,29065.0,0.50692303]
[1609486657798,3.99403,29066.0,29065.0,0.50692303]
[1609486659010,3.79403,29066.0,29065.0,0.50692303]
[1609486659211,3.99403,29066.0,29065.0,0.50692303]
[1609486659710,3.79403,29066.0,29065.0,0.50692303]
[1609486661114,4.30693274,29066.0,29065.0,0.50692303]
[1609486661317,4.34040086,29066.0,29065.0,0.50692303]
[1609486661514,6.24040086,29066.0,29065.0,0.50692303]
[1609486661824,4.43133126,29065.0,29064.0,0.01224359]
[1609486662016,6.58342357,29065.0,29064.0,0.01224359]
[1609486662217,4.93857484,29065.0,29064.0,0.03622258]
[1609486662421,2.05510672,29065.0,29064.0,0.03622258]
[1609486662628,0.36403,29064.0,29059.0,0.1]
[1609486662823,0.36403,29064.0,29059.0,0.22265356]
[1609486662824,0.36459056,29064.0,29059.0,0.22265356]
[1609486663127,0.36403,29063.0,29060.0,0.1646034]
[1609486663518,0.36403,29063.0,29061.0,0.1]
[1609486663820,0.36403,29063.0,29062.0,0.04190627]
[1609486666453,0.91403,29063.0,29062.0,0.14190627]
[1609486666657,0.49903,29063.0,29062.0,0.14190627]
[1609486666857,0.36403,29063.0,29062.0,0.14190627]
[1609486668058,0.36403,29063.0,29062.0,0.1]
[1609486668349,0.96403,29063.0,29062.0,0.1]
[1609486668548,0.50403,29063.0,29062.0,0.1]
[1609486668948,0.36403,29063.0,29062.0,0.1]
[1609486670349,0.86403,29063.0,29062.0,0.1]
[1609486671050,0.86403,29063.0,29062.0,0.12280997]
[1609486671247,0.86403,29063.0,29062.0,0.22280997]
[1609486671846,0.86403,29063.0,29062.0,0.12280997]
[1609486672050,0.86403,29063.0,29062.0,0.13260898]
[1609486672449,1.51403,29063.0,29062.0,0.00979901]
[1609486672651,1.73903,29063.0,29062.0,0.00979901]
[1609486672853,1.73903,29063.0,29062.0,0.13262478]
[1609486673348,1.08903,29063.0,29062.0,0.13262478]
[1609486674863,0.58903,29063.0,29062.0,0.13262478]
[1609486675065,0.36403,29063.0,29062.0,0.23262478]
[1609486677081,0.36403,29063.0,29062.0,0.10979901]
[1609486681120,0.36403,29063.0,29062.0,0.00979901]
[1609486682918,0.57473,29063.0,29062.0,0.00979901]
[1609486685871,0.36403,29063.0,29062.0,0.00979901]
[1609486687974,0.36403,29063.0,29062.0,0.35505901]
[1609486689897,0.66546056,29068.0,29062.0,0.35505901]
[1609486690100,0.36403,29067.0,29062.0,0.35505901]
[1609486690298,0.67403,29067.0,29064.0,0.5155]
[1609486690499,0.67459056,29067.0,29065.0,0.1]
[1609486690701,1.86403,29066.0,29065.0,0.1]
[1609486690914,2.24403,29066.0,29065.0,0.26537502]
[1609486691203,0.74403,29066.0,29065.0,0.26537502]
[1609486691698,0.36403,29066.0,29065.0,0.26537502]
[1609486692504,0.36403,29068.0,29065.0,0.26537502]
[1609486692709,0.00056056,29071.0,29066.0,0.36403]
[1609486692903,0.23556056,29071.0,29066.0,0.36403]
[1609486693107,0.235,29071.0,29066.0,0.16534457]
[1609486693299,0.185,29070.0,29066.0,0.16534457]
[1609486693508,0.00056056,29072.0,29067.0,0.12339683]
[1609486693709,0.00056056,29070.0,29068.0,0.6155]
[1609486693906,0.00056056,29070.0,29068.0,0.6955]
[1609486694106,1.0,29073.0,29069.0,0.36403]
[1609486694306,0.62903,29072.0,29069.0,0.23019367]
[1609486694824,0.62959056,29072.0,29069.0,0.23019367]
[1609486695023,0.62959056,29072.0,29070.0,0.0419036]
[1609486695223,0.62959056,29072.0,29071.0,0.18]
[1609486695428,0.77010672,29072.0,29071.0,0.18]
[1609486696226,0.77010672,29072.0,29071.0,0.22190211]
[1609486696433,0.62903,29072.0,29071.0,0.22190211]
[1609486696630,0.265,29072.0,29071.0,0.22190211]
[1609486697234,0.265,29072.0,29071.0,0.58593211]
[1609486697435,0.00056056,29073.0,29071.0,0.58593211]
[1609486697638,0.00056056,29074.0,29071.0,0.22190211]
[1609486697837,0.00056056,29074.0,29072.0,0.55730175]
[1609486698308,0.00056056,29077.0,29073.0,0.12190162]
[1609486698502,0.36403,29076.0,29073.0,0.12190162]
[1609486698709,0.50566728,29076.0,29074.0,0.1]
[1609486698910,2.035,29075.0,29074.0,0.1]
[1609486699100,2.39903,29075.0,29074.0,0.1]
[1609486699307,0.74903,29075.0,29074.0,0.18]
[1609486699501,0.36403,29075.0,29074.0,0.18]
[1609486699800,0.50510672,29075.0,29074.0,0.18]
[1609486700201,0.14107672,29075.0,29074.0,0.18]
[1609486700401,0.14107672,29075.0,29074.0,0.54403]
[1609486700804,0.14163728,29077.0,29074.0,0.54403]
[1609486701102,0.255,29076.0,29074.0,0.18]
[1609486701304,0.14107672,29077.0,29074.0,0.18]
[1609486701504,0.00056056,29076.0,29074.0,0.18]
[1609486702103,0.36403,29077.0,29074.0,0.18]
[1609486702306,0.36403,29077.0,29076.0,0.5153]
[1609486702504,0.69403,29077.0,29076.0,0.5153]
[1609486703107,0.83510672,29077.0,29076.0,0.5153]
[1609486703508,0.83510672,29077.0,29076.0,0.5953]
[1609486704126,2.18490672,29077.0,29076.0,0.5953]
[1609486704324,2.18490672,29077.0,29076.0,0.5153]
[1609486706629,2.18490672,29077.0,29076.0,0.52507017]
[1609486707128,2.83490672,29077.0,29076.0,0.52507017]
[1609486707628,2.18490672,29077.0,29076.0,0.52507017]
[1609486709232,2.04383,29077.0,29076.0,0.52507017]
[1609486709551,2.08490185,29077.0,29076.0,0.52507017]
[1609486709851,2.07990185,29077.0,29076.0,0.52507017]
[1609486710047,2.77990185,29077.0,29076.0,0.52507017]
[1609486710250,2.22097857,29077.0,29076.0,0.52507017]
[1609486710449,3.19280946,29077.0,29076.0,0.52507017]
[1609486711250,3.05173274,29077.0,29076.0,0.52507017]
[1609486711951,3.01066089,29077.0,29076.0,0.52507017]
[1609486712252,2.03883,29077.0,29076.0,0.52507017]
[1609486717799,0.68883,29077.0,29076.0,0.52507017]
[1609486718800,2.03883,29077.0,29076.0,0.52507017]
[1609486719603,2.03383,29077.0,29076.0,0.52507017]
[1609486720702,2.03383,29077.0,29076.0,0.53310926]
[1609486722107,0.68383,29077.0,29076.0,0.53310926]
[1609486722303,0.68383,29077.0,29076.0,0.63310926]
[1609486723152,0.68383,29077.0,29076.0,0.67500456]
[1609486723748,0.68383,29077.0,29076.0,0.75500456]
[1609486723950,1.14163728,29078.0,29076.0,1.29628456]
[1609486724153,1.00056056,29078.0,29077.0,0.342533]
[1609486724354,0.72103261,29079.0,29077.0,0.652533]
[1609486724657,0.72103261,29079.0,29077.0,0.35189506]
[1609486724853,0.72103261,29079.0,29078.0,0.08]
[1609486725055,1.08445605,29079.0,29078.0,0.08]
[1609486725248,1.22553277,29079.0,29078.0,0.08]
[1609486726980,1.57553277,29079.0,29078.0,0.12189368]
[1609486730707,2.57553277,29079.0,29078.0,0.12189368]
[1609486731706,3.52553277,29079.0,29078.0,0.12189368]
[1609486732210,3.38445605,29079.0,29078.0,0.12189368]
[1609486732408,2.42945605,29079.0,29078.0,0.12189368]
[1609486733708,2.13445605,29079.0,29078.0,0.12189368]
[1609486734827,1.43445605,29079.0,29078.0,0.12189368]